fUSD/lending_fUSD_20250402
["ID","MTS","AMOUNT","RATE_DAILY","PERIOD"]
[357020556,1743580246825,-152.8,0.000532,51]
[357020557,1743580246835,-152.8,0.000532,51]
[357020558,1743580246844,-152.8,0.000532,51]
[357020559,1743580246854,-152.8,0.000532,51]
[357020560,1743580246863,-152.8,0.000532,51]
[357020561,1743580246876,-152.8,0.000532,51]
[357020562,1743580246887,-152.8,0.000532,51]
[357020563,1743580246896,-152.8,0.000532,51]
[357020564,1743580246906,-283.97562398,0.00053211,120]
[357020565,1743580246916,-182.76483898,0.00053315,120]
[357020566,1743580246927,-644.79446246,0.00053385,2]
[357020567,1743580246937,-13652.5772866,0.00053404,4]
[357020568,1743580246946,-747.76,0.00053412,120]
[357020569,1743580246957,-500.0,0.00053412,120]
[357020570,1743580246967,-7768.93033878,0.00053413,4]
[357020571,1743580246977,-629.65,0.00053414,120]
[357020572,1743580246988,-13652.5772866,0.00053414,4]
[357020573,1743580246998,-7768.93033878,0.00053414,4]
[357020574,1743580247007,-500.0,0.00053423,2]
[357020575,1743580247017,-500.0,0.00053423,120]
[357020576,1743580247027,-500.0,0.00053423,120]
[357020577,1743580247036,-731.3,0.00053423,120]
[357020579,1743580247047,-500.0,0.00053423,120]
[357020581,1743580247056,-150.0,0.00053423,120]
[357020582,1743580247067,-1636.16,0.00053423,120]
[357020583,1743580247077,-1325.72,0.00053423,12]
[357020584,1743580247087,-1278.25784541,0.00053423,30]
[357020585,1743580247148,-451.07215459,0.00053423,30]
[357020586,1743580247157,-827.94200898,0.00053423,120]
[357020587,1743580247169,-101.29799102,0.00053423,120]
[357020588,1743580247179,-2593.03,0.00053423,120]
[357020589,1743580247189,-500.0,0.00053423,120]
[357020590,1743580247198,-833.33,0.00053423,120]
[357020591,1743580247208,-500.0,0.00053423,120]
[357020592,1743580247217,-553.34552858,0.00053423,120]
[357020593,1743580247229,-487.54447142,0.00053423,120]
[357020594,1743580247241,-242.71283969,0.00053423,30]
[357020595,1743580247253,-507.59716031,0.00053423,30]
[357020596,1743580247262,-492.00780457,0.00053423,120]
[357020597,1743580247274,-447.20556288,0.00053423,120]
[357020598,1743580247286,-410.56663255,0.00053423,120]
[357020599,1743580247296,-92.44510178,0.00053424,120]
[357020600,1743580250674,-407.55489822,0.00053424,120]
[357020601,1743580250684,-807.16,0.00053424,120]
[357020602,1743580250693,-500.0,0.00053424,120]
[357020603,1743580250703,-500.0,0.00053424,120]
[357020604,1743580250712,-1077.97,0.00053424,120]
[357020605,1743580250722,-291.94980397,0.00053424,120]
[357020606,1743580250732,-500.0,0.00053424,120]
[357020607,1743580250743,-610.9,0.00053424,120]
[357020608,1743580250753,-368.60702323,0.00053424,120]
[357020609,1743580250762,-500.0,0.00053424,120]
[357020610,1743580250772,-500.0,0.00053424,120]
[357020611,1743580250781,-1575.28,0.00053424,120]
[357020612,1743580250790,-831.94,0.00053424,120]
[357020613,1743580250800,-1555.12,0.00053424,120]
[357020614,1743580250809,-506.78,0.00053424,120]
[357020615,1743580250819,-283.97562398,0.00053627,120]
[357020616,1743580250828,-168.3888056,0.00053656,2]
[357020617,1743580250837,-7768.93033878,0.00053677,4]
[357020618,1743580250846,-747.76,0.00053686,120]
[357020619,1743580250856,-500.0,0.00053686,120]
[357020620,1743580250865,-6319.07143847,0.00053687,4]
[357020621,1743580250879,-3386.44945899,0.00053687,4]
[357020622,1743580253974,-3947.05638914,0.00053687,4]
[357020623,1743580253984,-7768.93033878,0.00053687,4]
[357020624,1743580253995,-629.65,0.00053688,120]
[357020625,1743580254004,-7768.93033878,0.00053688,4]
[357020626,1743580254013,-500.0,0.00053697,2]
[357020627,1743580254023,-500.0,0.00053697,120]
[357020628,1743580254032,-500.0,0.00053697,120]
[357020629,1743580254041,-731.3,0.00053697,120]
[357020630,1743580254051,-500.0,0.00053697,120]
[357020631,1743580254060,-150.0,0.00053697,120]
[357020632,1743580254070,-1636.16,0.00053697,120]
[357020633,1743580254079,-1325.72,0.00053697,12]
[357020634,1743580254089,-1729.33,0.00053697,30]
[357020635,1743580254098,-929.24,0.00053697,120]
[357020636,1743580254107,-2593.03,0.00053697,120]
[357020637,1743580254117,-500.0,0.00053697,120]
[357020638,1743580254127,-833.33,0.00053697,120]
[357020639,1743580254136,-500.0,0.00053697,120]
[357020640,1743580254145,-1040.89,0.00053697,120]
[357020641,1743580254154,-750.31,0.00053697,30]
[357020642,1743580254163,-1349.78,0.00053697,120]
[357020643,1743580254173,-500.0,0.00053698,120]
[357020644,1743580254182,-807.16,0.00053698,120]
[357020645,1743580254191,-238.21920333,0.00053698,120]
[357020646,1743580254201,-500.0,0.00053698,120]
[357020647,1743580254210,-1077.97,0.00053698,120]
[357020648,1743580254219,-500.0,0.00053698,120]
[357020649,1743580254228,-610.9,0.00053698,120]
[357020650,1743580254238,-332.20086062,0.00053698,120]
[357020651,1743580254247,-500.0,0.00053698,120]
[357020652,1743580254256,-1575.28,0.00053698,120]
[357020653,1743580254265,-831.94,0.00053698,120]
[357020654,1743580254275,-1555.12,0.00053698,120]
[357020655,1743580254284,-506.78,0.00053698,120]
[357020656,1743580254293,-13652.5772866,0.00053843,4]
[357020657,1743580254302,-7768.93033878,0.00053843,4]
[357020658,1743580254311,-150.13,0.00053843,120]
[357020659,1743580254321,-668.65185757,0.00053933,2]
[357020660,1743580254330,-7768.93033878,0.00053952,4]
[357020661,1743580254339,-747.76,0.0005396,120]
[357020662,1743580254348,-500.0,0.0005396,120]
[357020663,1743580254357,-13652.5772866,0.00053961,4]
[357020664,1743580254366,-7768.93033878,0.00053961,4]
[357020665,1743580254376,-629.65,0.00053962,120]
[357020666,1743580254386,-13652.5772866,0.00053962,4]
[357020667,1743580254395,-7768.93033878,0.00053962,4]
[357020668,1743580254404,-355.27038728,0.00053964,15]
[357020669,1743580254414,-500.0,0.00053971,2]
[357020670,1743580254424,-500.0,0.00053971,120]
[357020671,1743580254433,-453.64848499,0.00053971,120]
[357020672,1743580254442,-731.3,0.00053971,120]
[357020673,1743580254452,-395.14075012,0.00053971,120]
[357020674,1743580254461,-150.0,0.00053971,120]
[357020675,1743580254471,-1636.16,0.00053971,120]
[357020676,1743580254480,-1325.72,0.00053971,12]
[357020677,1743580254490,-1729.33,0.00053971,30]
[357020678,1743580254499,-929.24,0.00053971,120]
[357020679,1743580254509,-2593.03,0.00053971,120]
[357020680,1743580254518,-500.0,0.00053971,120]
[357020681,1743580254528,-833.33,0.00053971,120]
[357020682,1743580254537,-500.0,0.00053971,120]
[357020683,1743580254546,-1040.89,0.00053971,120]
[357020684,1743580254555,-750.31,0.00053971,30]
[357020685,1743580254565,-1349.78,0.00053971,120]
[357020686,1743580254574,-500.0,0.00053972,120]
[357020687,1743580254583,-807.16,0.00053972,120]
[357020688,1743580254593,-500.0,0.00053972,120]
[357020689,1743580254602,-1077.97,0.00053972,120]
[357020690,1743580254612,-500.0,0.00053972,120]
[357020691,1743580254621,-610.9,0.00053972,120]
[357020692,1743580254631,-500.0,0.00053972,120]
[357020693,1743580254640,-1575.28,0.00053972,120]
[357020694,1743580254650,-831.94,0.00053972,120]
[357020695,1743580254659,-1555.12,0.00053972,120]
[357020696,1743580254669,-506.78,0.00053972,120]
[357020697,1743580254678,-500.0,0.00054,55]
[357020698,1743580254688,-172432.99513772,0.00054,120]
[357020699,1743580254729,-368.49367635,0.00054,120]
[357020700,1743580254741,-1893.07921605,0.00054,120]
[357020701,1743580254792,-500.3348243,0.00049315,120]
[357020702,1743580254807,-25.72686762,0.00049315,120]
[357020703,1743580254816,-500.0,0.00049315,120]
[357020704,1743580254826,-240.67313238,0.00049315,120]
[357020705,1743580254838,-396.16843046,0.00049315,120]
[357020706,1743580254847,-106.92022428,0.00049589,120]
[357020707,1743580255499,-500.0,0.00049315,120]
[357020708,1743580255508,-393.07977572,0.00049589,120]
[357020709,1743580255518,-150.0,0.00050134,120]
[357020710,1743580255528,-500.0,0.00050135,120]
[357020711,1743580255538,-503.12317002,0.00050409,120]
[357020712,1743580255547,-627.36507513,0.0005168,15]
[357020713,1743580255557,-15305.43196988,0.00054,120]
[357020714,1743580255567,-283.97562398,0.00054043,120]
[357020715,1743580255576,-747.76,0.00054234,120]
[357020716,1743580255587,-500.0,0.00054234,120]
[357020717,1743580255596,-7768.93033878,0.00054235,4]
[357020718,1743580255606,-629.65,0.00054236,120]
[357020719,1743580255616,-13652.5772866,0.00054236,4]
[357020720,1743580255625,-7768.93033878,0.00054236,4]
[357020721,1743580255634,-500.0,0.00054245,2]
[357020722,1743580255644,-500.0,0.00054245,120]
[357020723,1743580255654,-731.3,0.00054245,120]
[357020724,1743580255664,-150.0,0.00054245,120]
[357020725,1743580255674,-1636.16,0.00054245,120]
[357020726,1743580255683,-1325.72,0.00054245,12]
[357020727,1743580255693,-1729.33,0.00054245,30]
[357020728,1743580255703,-929.24,0.00054245,120]
[357020729,1743580255713,-2593.03,0.00054245,120]
[357020730,1743580255723,-539.7,0.00054245,120]
[357020731,1743580255733,-833.33,0.00054245,120]
[357020732,1743580255743,-500.0,0.00054245,120]
[357020733,1743580255753,-1040.89,0.00054245,120]
[357020734,1743580255762,-750.31,0.00054245,30]
[357020735,1743580255772,-1349.78,0.00054245,120]
[357020736,1743580255782,-500.0,0.00054246,120]
[357020737,1743580255791,-807.16,0.00054246,120]
[357020738,1743580255801,-474.67449241,0.00054246,120]
[357020739,1743580255811,-1077.97,0.00054246,120]
[357020740,1743580255821,-500.0,0.00054246,120]
[357020741,1743580255831,-610.9,0.00054246,120]
[357020742,1743580255841,-500.0,0.00054246,120]
[357020743,1743580255850,-1069.74303001,0.00054246,120]
[357020744,1743580255859,-1575.28,0.00054246,120]
[357020745,1743580255870,-831.94,0.00054246,120]
[357020746,1743580255881,-1555.12,0.00054246,120]
[357020747,1743580255891,-506.78,0.00054246,120]
[357020748,1743580255901,-318.0,0.00054321,30]
[357020749,1743580255911,-283.97562398,0.00054458,120]
[357020750,1743580255920,-693.3919763,0.00054481,2]
[357020751,1743580255929,-1460.0,0.000545,2]
[357020752,1743580255941,-747.76,0.00054508,120]
[357020753,1743580255952,-500.0,0.00054508,120]
[357020754,1743580255961,-3541.51983819,0.00054509,4]
[357020755,1743580256087,-504.05834148,0.00049315,120]
[357020756,1743580256095,-500.0,0.00049315,120]
[357020757,1743580256103,-510.69807552,0.00049589,120]
[357020758,1743580256220,-500.0,0.00049852,120]
[357020759,1743580256230,-500.0,0.00050126,120]
[357020760,1743580256240,-500.0,0.000504,120]
[357020761,1743580256249,-500.0,0.00050674,120]
[357020762,1743580256259,-500.0,0.00050948,120]
[357020763,1743580256267,-500.0,0.00051222,120]
[357020764,1743580256276,-500.0,0.00051496,120]
[357020765,1743580256285,-500.0,0.0005177,120]
[357020766,1743580256294,-500.0,0.00052044,120]
[357020767,1743580256303,-500.0,0.00052318,120]
[357020768,1743580256312,-470.2544026,0.00052592,120]
[357020769,1743580256321,-627.36507504,0.00053149,15]
[357020770,1743580256330,-4227.41050059,0.00054509,4]
[357020771,1743580256340,-629.65,0.0005451,120]
[357020772,1743580256350,-500.0,0.00054519,2]
[357020773,1743580256359,-301.86014264,0.00054519,120]
[357020774,1743580256369,-731.3,0.00054519,120]
[357020775,1743580256378,-150.0,0.00054519,120]
[357020776,1743580256387,-1636.16,0.00054519,120]
[357020777,1743580256396,-1325.72,0.00054519,12]
[357020778,1743580256405,-1729.33,0.00054519,30]
[357020779,1743580256415,-929.24,0.00054519,120]
[357020780,1743580256424,-2593.03,0.00054519,120]
[357020781,1743580256433,-833.33,0.00054519,120]
[357020782,1743580256442,-500.0,0.00054519,120]
[357020783,1743580256451,-1040.89,0.00054519,120]
[357020784,1743580256461,-750.31,0.00054519,30]
[357020785,1743580256470,-1349.78,0.00054519,120]
[357020786,1743580256480,-500.0,0.0005452,120]
[357020787,1743580256490,-807.16,0.0005452,120]
[357020788,1743580256499,-1077.97,0.0005452,120]
[357020789,1743580256509,-500.0,0.0005452,120]
[357020790,1743580256519,-610.9,0.0005452,120]
[357020791,1743580256529,-500.0,0.0005452,120]
[357020792,1743580256538,-1575.28,0.0005452,120]
[357020793,1743580256548,-831.94,0.0005452,120]
[357020794,1743580256558,-1555.12,0.0005452,120]
[357020795,1743580256568,-506.78,0.0005452,120]
[357020796,1743580256577,-13652.5772866,0.00054687,4]
[357020797,1743580256587,-482.15,0.00054697,2]
[357020798,1743580256596,-747.76,0.00054782,120]
[357020799,1743580256606,-500.0,0.00054782,120]
[357020800,1743580256615,-7768.93033878,0.00054783,4]
[357020801,1743580256625,-13652.5772866,0.00054784,4]
[357020802,1743580256634,-15537.8606776,0.00054784,4]
[357020803,1743580256644,-629.65,0.00054784,120]
[357020804,1743580256654,-480.00882991,0.00054793,2]
[357020805,1743580256664,-731.3,0.00054793,120]
[357020806,1743580256673,-150.0,0.00054793,120]
[357020807,1743580256682,-1636.16,0.00054793,120]
[357020808,1743580256692,-1325.72,0.00054793,12]
[357020809,1743580256701,-1729.33,0.00054793,30]
[357020810,1743580256710,-929.24,0.00054793,120]
[357020811,1743580256719,-2593.03,0.00054793,120]
[357020812,1743580256727,-833.33,0.00054793,120]
[357020813,1743580256735,-399.02,0.00054793,120]
[357020814,1743580256744,-1040.89,0.00054793,120]
[357020815,1743580256752,-500.0,0.00054793,120]
[357020816,1743580256760,-750.31,0.00054793,30]
[357020817,1743580256768,-1349.78,0.00054793,120]
[357020818,1743580256775,-547.92809277,0.00054794,120]
[357020819,1743580256783,-523.33829722,0.00054794,120]
[357020820,1743580256791,-807.16,0.00054794,120]
[357020821,1743580256799,-1000.0,0.00054794,120]
[357020822,1743580256808,-1000.0,0.00054794,120]
[357020823,1743580256817,-1000.0,0.00054794,120]
[357020824,1743580256827,-1000.0,0.00054794,120]
[357020825,1743580256836,-1000.0,0.00054794,120]
[357020826,1743580256846,-1000.0,0.00054794,120]
[357020827,1743580256855,-1000.0,0.00054794,120]
[357020828,1743580256864,-1000.0,0.00054794,120]
[357020829,1743580256876,-1000.0,0.00054794,120]
[357020830,1743580256886,-1000.0,0.00054794,120]
[357020831,1743580256895,-1000.0,0.00054794,120]
[357020832,1743580256905,-1000.0,0.00054794,120]
[357020833,1743580256915,-865.29157429,0.00054794,120]
[357020834,1743580256925,-1077.97,0.00054794,120]
[357020835,1743580256935,-189.19,0.00054794,120]
[357020836,1743580256944,-610.9,0.00054794,120]
[357020837,1743580256954,-462.32348681,0.00054794,120]
[357020838,1743580256964,-1000.0,0.00054794,120]
[357020839,1743580256974,-1000.0,0.00054794,120]
[357020840,1743580256983,-1000.0,0.00054794,120]
[357020841,1743580256992,-1000.0,0.00054794,120]
[357020842,1743580257002,-174.41614554,0.00054794,120]
[357020843,1743580257012,-1575.28,0.00054794,120]
[357020844,1743580257023,-831.94,0.00054794,120]
[357020845,1743580257032,-500.0,0.00054794,120]
[357020846,1743580257042,-500.0,0.00054794,120]
[357020847,1743580257051,-500.0,0.00054794,120]
[357020848,1743580257061,-500.0,0.00054794,120]
[357020849,1743580257070,-500.0,0.00054794,120]
[357020850,1743580257080,-500.0,0.00054794,120]
[357020851,1743580257089,-500.0,0.00054794,120]
[357020852,1743580257098,-500.0,0.00054794,120]
[357020853,1743580257108,-500.0,0.00054794,120]
[357020854,1743580257117,-1555.12,0.00054794,120]
[357020855,1743580257128,-506.78,0.00054794,120]
[357020856,1743580257137,-283.97562398,0.00054874,120]
[357020857,1743580257148,-318.0,0.00054881,30]
[357020858,1743580257159,-13652.5772866,0.00054989,4]
[357020859,1743580257169,-15537.8606776,0.00054989,4]
[357020860,1743580257178,-500.0,0.00054989,120]
[357020861,1743580257188,-31444.55707505,0.0005499,4]
[357020862,1743580257239,-23165.75207115,0.0005499,4]
[357020863,1743580257248,-124412.19610446,0.0005499,4]
[357020864,1743580257262,-21491.35077954,0.0005499,4]
[357020865,1743580257808,-500.0,0.00049589,120]
[357020866,1743580257817,-25012.920569,0.0005499,4]
[357020867,1743580257826,-999.0,0.00054999,120]
[357020868,1743580257836,-999.0,0.00054999,120]
[357020869,1743580257845,-999.0,0.00054999,120]
[357020870,1743580257854,-999.0,0.00054999,120]
[357020871,1743580257863,-999.0,0.00054999,120]
[357020872,1743580257875,-999.0,0.00054999,120]
[357020873,1743580257885,-999.0,0.00054999,120]
[357020874,1743580257894,-999.0,0.00054999,120]
[357020875,1743580257903,-999.0,0.00054999,120]
[357020876,1743580257912,-999.0,0.00054999,120]
[357020877,1743580257922,-999.0,0.00054999,120]
[357020878,1743580257931,-999.0,0.00054999,120]
[357020879,1743580257940,-999.0,0.00054999,120]
[357020880,1743580257951,-999.0,0.00054999,120]
[357020881,1743580257960,-999.0,0.00054999,120]
[357020882,1743580257970,-999.0,0.00054999,120]
[357020883,1743580257979,-999.0,0.00054999,120]
[357020884,1743580257988,-999.0,0.00054999,120]
[357020885,1743580257998,-999.0,0.00054999,120]
[357020886,1743580258008,-999.0,0.00054999,120]
[357020887,1743580258017,-999.0,0.00054999,120]
[357020888,1743580258027,-999.0,0.00054999,120]
[357020889,1743580258037,-999.0,0.00054999,120]
[357020890,1743580258047,-393.15824239,0.00054999,120]
[357020891,1743580258056,-500.0,0.00054999,120]
[357020892,1743580258066,-500.0,0.00054999,120]
[357020893,1743580258077,-51581.90930925,0.00055,120]
[357020894,1743580259182,-500.0,0.00049863,120]
[357020895,1743580259192,-38593.24322307,0.00055,120]
[357020896,1743580259203,-35522.9511281,0.00055,120]
[357020897,1743580259214,-4216.7,0.00055,120]
[357020898,1743580259226,-1130.07324647,0.00055,120]
[357020899,1743580259237,-378.8694,0.00055,120]
[357020900,1743580259399,-13993.38516689,0.00055,120]
[357020901,1743580260552,-197412.48169983,0.00055,120]
[357020902,1743580260566,-469.45250243,0.00055,120]
[357020903,1743580261101,-103744.6815026,0.00055,120]
[357020904,1743580261127,-639.22380711,0.00055,120]
[357020905,1743580261138,-1130.78065668,0.00055,120]
[357020906,1743580261150,-492.29309794,0.00055,120]
[357020907,1743580261162,-3088.4339,0.00055,120]
[357020908,1743580739274,307.31554198,0.00027008,120]
[357020910,1743581387054,500.0,0.00032,120]
[357020917,1743581431752,-208.41,0.00026849,2]
[357020918,1743581431762,-44.766,0.00027,2]
[357020939,1743581437610,-205.234,0.00027,2]
[357020940,1743581437620,-300.0,0.00029,2]
[357020941,1743581437630,-350.0,0.00031,2]
[357020942,1743581437640,-208.41,0.00032646,2]
[357020943,1743581437649,-400.0,0.00033,2]
[357020944,1743581437659,-150.0,0.0003449,2]
[357020945,1743581437668,-1657.40872717,0.0003449,120]
[357020946,1743581437677,-250.0,0.0003449,120]
[357020947,1743581437687,-208.41,0.00038443,2]
[357020948,1743581437697,-208.41,0.00044239,2]
[357020949,1743581437707,-457.5132,0.00046888,30]
[357020950,1743581437717,-465.89492751,0.000488,120]
[357020951,1743581437728,-152.62,0.000488,45]
[357020952,1743581437738,-152.62,0.000488,45]
[357020953,1743581437748,-500.0,0.00049,120]
[357020954,1743581437759,-355.269,0.00049314,86]
[357020955,1743581437769,-103.37173885,0.00049314,86]
[357020956,1743581437786,-92.02721743,0.00049314,86]
[357020957,1743581437796,-500.0,0.00049315,120]
[357020958,1743581437805,-170.31,0.00049315,120]
[357020959,1743581437815,-460.46533051,0.00049589,120]
[357020970,1743581444054,-39.53466949,0.00049589,120]
[357020971,1743581444064,-150.0,0.00049853,2]
[357020972,1743581444075,-500.0,0.00049863,120]
[357020973,1743581444084,-824.12728745,0.00049888,120]
[357021136,1743581445891,-175.87271255,0.00049888,120]
[357021138,1743581445900,-500.0,0.00049999,120]
[357021140,1743581445910,-208.41,0.00050036,2]
[357021142,1743581445919,-302.3,0.00050118,2]
[357021144,1743581445929,-87.51728745,0.00050135,120]
[357021582,1743581468119,187.528197,7.945e-05,2]
[357021584,1743582012357,196.5,0.00013699,2]
[357021590,1743582392698,847.2,0.0003,30]
[357021591,1743582431634,-78000.0,0.00015,2]
[357021595,1743582511829,559.36,0.00032,120]
[357021630,1743582631874,-743.75,0.0001499,2]
[357021631,1743582631884,-13401.30765889,0.00015,2]
[357021632,1743582631896,-2016.81087589,0.00015,2]
[357021633,1743582631908,-3167.8108349,0.00015,2]
[357021634,1743582631920,-973.725,0.00015,2]
[357021635,1743582631931,-8536.46256784,0.00015,2]
[357021636,1743582631943,-542.92,0.00015,2]
[357021637,1743582631954,-316.52362598,0.00015,2]
[357021638,1743582631966,-330.55581015,0.00015,2]
[357021639,1743582631982,-1931.45471134,0.00015,2]
[357021640,1743582631993,-423.51186156,0.00015,2]
[357021655,1743582637733,-86334.52645972,0.00015,2]
[357021656,1743582637892,-876.03312688,0.00015,2]
[357021657,1743582637946,-12416.7471262,0.00015,2]
[357021658,1743582637958,-1061.30275631,0.00015,2]
[357021709,1743582639974,-373.35999999,0.00015,2]
[357021738,1743582643054,-5365.83802349,0.00015,2]
[357021739,1743582643069,-84549.387215,0.00015,2]
[357021740,1743582643080,-2815.98039458,0.00015,2]
[357021793,1743582645874,-9019.79802785,0.00015,2]
[357021805,1743582645984,-8502.52395702,0.00015,2]
[357021846,1743582720997,350.0,0.00015,12]
[357021847,1743583024334,151.0,0.0003,30]
[357021848,1743583024990,156.587,0.0003,30]
[357021849,1743583025693,162.380719,0.0003,30]
[357021850,1743583026377,168.3888056,0.0003,30]
[357021851,1743583027128,174.61919141,0.0003,30]
[357021852,1743583027812,181.08010149,0.0003,30]
[357021853,1743583029134,187.78006525,0.0003,30]
[357021854,1743583030460,194.72792766,0.0003,30]
[357021855,1743583031265,201.93286099,0.0003,30]
[357021856,1743583031786,209.40437684,0.0003,30]
[357021857,1743583032458,217.15233878,0.0003,30]
[357021858,1743583033143,225.18697532,0.0003,30]
[357021859,1743583033776,233.51889341,0.0003,30]
[357021860,1743583034436,242.15909246,0.0003,30]
[357021861,1743583035071,389.34541249,0.0003,30]
[357021862,1743583039426,500.0,0.0003,30]
[357021863,1743583040118,518.5,0.0003,30]
[357021864,1743583040781,537.6845,0.0003,30]
[357021865,1743583041420,557.5788265,0.0003,30]
[357021866,1743583042102,578.20924308,0.0003,30]
[357021867,1743583042767,599.60298507,0.0003,30]
[357021868,1743583043434,621.78829552,0.0003,30]
[357021869,1743583044062,694.6557181,0.0003,30]
[357021870,1743583072487,-32384.8329,0.000149,2]
[357021871,1743583072512,-150.0,0.00014999,2]
[357021872,1743583072538,-254073.30331186,0.00015,2]
[357021873,1743583279646,50000.0,0.00032,120]
[357021874,1743583359618,435.27421457,0.00014661,2]
[357021875,1743583441735,153.99,0.00013699,2]
[357021876,1743583745210,-350.0,0.00016368,12]
[357021877,1743583745230,-150.0,0.00016499,2]
[357021878,1743583745251,-150.0,0.00016499,2]
[357021879,1743583745271,-350.0,0.00017861,12]
[357021880,1743583745290,-350.0,0.00018005,12]
[357021881,1743583745312,-730.50571968,0.00019,2]
[357021882,1743583745332,-343.01282385,0.0001901,7]
[357021883,1743583745351,-521.95733703,0.00021,2]
[357021884,1743583745372,-2318.33486882,0.00021,2]
[357021885,1743583745391,-231.33599977,0.0002211,2]
[357021886,1743583745411,-1519.29,0.00023368,2]
[357021887,1743583745430,-1026.38332113,0.00023609,10]
[357021888,1743583745450,-18987.3632354,0.0002361,7]
[357021889,1743583745470,-2123.45688955,0.00024,2]
[357021890,1743583745490,-4343.70124645,0.00026,2]
[357021891,1743583745510,-13437.36129832,0.000264,2]
[357021892,1743583754233,-697.39347896,0.000264,2]
[357021893,1743583754257,-156.91,0.00026849,2]
[357021894,1743583754278,-250.0,0.00027,2]
[357021895,1743583754298,-466.92440737,0.00027975,2]
[357021896,1743583754320,-284.216,0.00028283,19]
[357021897,1743583754342,-3950.0,0.00028916,2]
[357021898,1743583754363,-1365.0,0.00028916,2]
[357021899,1743583754386,-1017.0,0.00028916,2]
[357021900,1743583754407,-1275.0,0.00028916,2]
[357021901,1743583754427,-789.0,0.00028916,2]
[357021902,1743583754447,-4094.0,0.00028916,2]
[357021903,1743583754468,-501.88,0.0003248,5]
[357021904,1743583754489,-170.32,0.00035,2]
[357021905,1743583754514,-161.66,0.00035744,2]
[357021906,1743583754535,-4187.10686103,0.00036,5]
[357021907,1743583754556,-5554.0,0.000368,5]
[357021908,1743583754578,-156.91,0.00037863,2]
[357021909,1743583754599,-305.82,0.0003805,2]
[357021910,1743583754621,-168.19,0.00038667,2]
[357021911,1743583754645,-253.64,0.00038774,2]
[357021912,1743583754666,-200.0,0.00038914,2]
[357021913,1743583754688,-150.13,0.00039422,2]
[357021914,1743583754708,-200.0,0.0003949,2]
[357021915,1743583754728,-150.0,0.00039508,7]
[357021916,1743583754751,-157.36,0.00039526,120]
[357021917,1743583754772,-150.0,0.00039627,2]
[357021918,1743583754793,-250.0,0.00039708,2]
[357021919,1743583754813,-1000.0,0.0003991,2]
[357021920,1743583754834,-305.82,0.00040314,2]
[357021921,1743583754853,-618.0,0.000405,2]
[357021922,1743583754872,-343.9153688,0.00042,120]
[357021923,1743583754893,-23900.0,0.00042115,2]
[357021924,1743583754913,-152.3,0.0004219,2]
[357021925,1743583754933,-305.82,0.00042577,2]
[357021926,1743583754956,-2003.90787627,0.00044,120]
[357021927,1743583754976,-305.82,0.00044841,2]
[357021928,1743583754998,-1000.0,0.00044899,2]
[357021929,1743583755017,-29933.34,0.00045699,2]
[357021930,1743583755040,-730.41049071,0.000465,120]
[357021931,1743583755068,-182.37991695,0.00047005,15]
[357021932,1743583755088,-305.82,0.00047105,2]
[357021933,1743583755109,-157.36,0.00047736,120]
[357021934,1743583755130,-182.37991691,0.00048438,15]
[357021935,1743583755150,-284.216,0.00048712,84]